[Event "Czech Youth U14 Girls 2024"]
[Site "Kouty nad Desnou"]
[Date "2024.03.10"]
[Round "2.4"]
[White "Barteckova, Nikol"]
[Black "Nova, Doubravka Anezka"]
[Result "1-0"]
[ECO "C02"]
[WhiteElo "1612"]
[BlackElo "1718"]
[Annotator "NA RC"]
[PlyCount "49"]
[EventDate "2024.03.10"]
[EventType "swiss"]
[EventCountry "CZE"]
[SourceTitle "playchess.com"]
[Source "ChessBase"]
[SourceQuality "1"]
[TimeControl "40/5400+30:1800+30"]

1. e4 {[%emt 0:00:03]} e6 {[%emt 0:00:05]} 2. d4 {[%emt 0:00:05]} d5 {[%emt 0:00:03]} 3. e5 {[%emt 0:00:27]} c5 {[%emt 0:00:06]} 4. c3 {[%emt 0:00:16]} Nc6 {[%emt 0:00:05]} 5. Nf3 {[%emt 0:00:11]} Qb6 {[%emt 0:00:09]} 6. Be2 {[%emt 0:03:03]} cxd4 {[%emt 0:03:16]} 7. cxd4 {[%emt 0:00:41]} Nh6 {[%emt 0:01:43]} 8. Nc3 {[%emt 0:04:44]} Nf5 {[%emt 0:03:50]} 9. Bb5 Bd7 {[%emt 0:05:25]} 10. Ba4 {[%emt 0:19:34]} Nfxd4 {[%emt 0:08:25]} 11. Nxd4 {[%emt 0:03:41]} Qxd4 {[%emt 0:01:02]} 12. Qxd4 {[%emt 0:04:46]} Nxd4 {[%emt 0:00:06]} 13. Bxd7+ {[%emt 0:01:05]} Kxd7 {[%emt 0:00:07]} 14. O-O {[%emt 0:00:25]} Bb4 {[%emt 0:02:10]} 15. Kh1 {[%emt 0:03:01]} Rac8 {[%emt 0:04:46]} 16. Rb1 {[%emt 0:02:16]} Bxc3 {[%emt 0:07:39]} 17. bxc3 {[%emt 0:00:08]} Nf5 {[%emt 0:05:38]} 18. Rxb7+ {[%emt 0:00:46]} Rc7 {[%emt 0:00:21]} 19. Rxc7+ {[%emt 0:00:28]} Kxc7 {[%emt 0:00:04]} 20. Ba3 {[%emt 0:01:32]} Rc8 {[%emt 0:03:53]} 21. Rb1 {[%emt 0:01:59]} Rb8 {[%emt 0:06:34]} 22. Bd6+ {[%emt 0:01:34]} Nxd6 {[%emt 0:01:27]} 23. exd6+ {[%emt 0:00:08]} Kc8 {[%emt 0:01:10]} 24. d7+ {[%emt 0:00:10]} Kc7 {[%emt 0:00:57]} 25. Rxb8 {[%emt 0:00:07]} 1-0

[Event "Czech Youth U14 Girls 2024"]
[Site "Kouty nad Desnou"]
[Date "2024.03.10"]
[Round "2.5"]
[White "Barteckova, Valerie"]
[Black "Kubatova, Ema"]
[Result "1-0"]
[ECO "A45"]
[WhiteElo "1687"]
[BlackElo "1580"]
[Annotator "NA RC"]
[PlyCount "41"]
[EventDate "2024.03.10"]
[EventType "swiss"]
[EventCountry "CZE"]
[SourceTitle "playchess.com"]
[Source "ChessBase"]
[SourceQuality "1"]
[TimeControl "40/5400+30:1800+30"]

1. d4 {[%emt 0:00:03]} Nf6 {[%emt 0:00:12]} 2. Bg5 {[%emt 0:00:09]} e6 {[%emt 0:00:15]} 3. e4 {[%emt 0:00:34]} h6 {[%emt 0:00:31]} 4. Bxf6 {[%emt 0:02:07]} Qxf6 {[%emt 0:00:18]} 5. e5 {[%emt 0:04:55]} Qd8 {[%emt 0:04:04]} 6. a3 {[%emt 0:03:55]} d6 {[%emt 0:11:29]} 7. exd6 {[%emt 0:03:25]} Bxd6 {[%emt 0:00:35]} 8. Nf3 {[%emt 0:01:59]} Nc6 {[%emt 0:08:20]} 9. Bb5 {[%emt 0:01:37]} Bd7 {[%emt 0:01:39]} 10. O-O {[%emt 0:02:55]} O-O {[%emt 0:01:53]} 11. Nc3 {[%emt 0:00:51]} a6 {[%emt 0:07:25]} 12. Ba4 {[%emt 0:00:32]} b5 {[%emt 0:09:39]} 13. Bb3 {[%emt 0:00:24]} Bc8 {[%emt 0:01:47]} 14. Re1 {[%emt 0:02:03]} Bb7 {[%emt 0:01:02]} 15. Qd3 {[%emt 0:12:18]} Qd7 {[%emt 0:02:02]} 16. Rad1 {[%emt 0:02:13]} Rad8 {[%emt 0:01:01]} 17. Ne4 {[%emt 0:00:55]} Be7 {[%emt 0:04:27]} 18. c3 {[%emt 0:03:04]} Na5 {[%emt 0:09:44]} 19. Bc2 {[%emt 0:00:52]} Nc4 {[%emt 0:02:02]} 20. Nf6+ {[%emt 0:00:47]} Bxf6 {[%emt 0:02:10]} 21. Qh7# 1-0

[Event "Czech Youth U14 Girls 2024"]
[Site "Kouty nad Desnou"]
[Date "2024.03.10"]
[Round "2.6"]
[White "Strazhnyk, Viktoriia"]
[Black "Hladka, Leontyna"]
[Result "1-0"]
[ECO "B90"]
[WhiteElo "1570"]
[BlackElo "1683"]
[Annotator "NA RC"]
[PlyCount "155"]
[EventDate "2024.03.10"]
[EventType "swiss"]
[EventCountry "CZE"]
[SourceTitle "playchess.com"]
[Source "ChessBase"]
[SourceQuality "1"]
[TimeControl "40/5400+30:1800+30"]

1. e4 {[%emt 0:00:03]} c5 {[%emt 0:00:06]} 2. Nf3 {[%emt 0:00:05]} d6 {[%emt 0:00:10]} 3. d4 {[%emt 0:00:04]} cxd4 {[%emt 0:00:06]} 4. Nxd4 {[%emt 0:00:06]} Nf6 {[%emt 0:00:10]} 5. Nc3 {[%emt 0:00:14]} a6 {[%emt 0:00:20]} 6. Bc4 {[%emt 0:00:13]} e5 {[%emt 0:00:23]} 7. Nb3 {[%emt 0:02:58]} Be6 {[%emt 0:02:15]} 8. Bxe6 {[%emt 0:07:29]} fxe6 {[%emt 0:01:46]} 9. f4 {[%emt 0:02:26]} Nbd7 {[%emt 0:09:08]} 10. fxe5 {[%emt 0:08:38]} Nxe5 {[%emt 0:02:30]} 11. Bf4 {[%emt 0:01:06]} Nc4 {[%emt 0:01:52]} 12. Qd4 {[%emt 0:05:25]} Rc8 {[%emt 0:12:32]} 13. Bc1 {[%emt 0:13:08]} Be7 {[%emt 0:05:26]} 14. Nd2 {[%emt 0:09:04]} b5 {[%emt 0:13:07]} 15. b3 {[%emt 0:05:51]} Nxd2 {[%emt 0:04:12]} 16. Bxd2 {[%emt 0:02:16]} O-O {[%emt 0:06:02]} 17. O-O-O {[%emt 0:07:14]} Ng4 {[%emt 0:02:13]} 18. Rdf1 {[%emt 0:14:12]} Rxf1+ {[%emt 0:08:57]} 19. Rxf1 {[%emt 0:00:07]} Bf6 {[%emt 0:02:02]} 20. Qd3 {[%emt 0:01:35]} Ne5 {[%emt 0:02:24]} 21. Qh3 {[%emt 0:00:50]} Qe7 {[%emt 0:04:31]} 22. Ne2 {[%emt 0:01:20]} Kh8 {[%emt 0:01:41]} 23. Nd4 {[%emt 0:01:50]} Re8 {[%emt 0:03:11]} 24. Qc3 {[%emt 0:06:59]} Ng6 {[%emt 0:03:22]} 25. Qe3 {[%emt 0:02:18]} Qa7 {[%emt 0:02:35]} 26. Nc6 {[%emt 0:00:51]} Qxe3 {[%emt 0:00:20]} 27. Bxe3 {[%emt 0:00:05]} d5 {[%emt 0:00:58]} 28. exd5 {[%emt 0:02:13]} exd5 {[%emt 0:00:07]} 29. Kd2 {[%emt 0:00:23]} Rc8 {[%emt 0:01:48]} 30. Nd4 {[%emt 0:00:42]} Bxd4 {[%emt 0:00:41]} 31. Bxd4 {[%emt 0:00:05]} Kg8 {[%emt 0:01:46]} 32. Rf5 {[%emt 0:00:47]} Ne7 {[%emt 0:00:33]} 33. Re5 {[%emt 0:00:47]} Kf7 {[%emt 0:00:41]} 34. Re3 {[%emt 0:01:00]} Nf5 {[%emt 0:02:22]} 35. Rf3 {[%emt 0:00:55]} Ke6 {[%emt 0:00:07]} 36. Be3 {[%emt 0:01:14]} Rd8 {[%emt 0:02:09]} 37. g4 {[%emt 0:00:18]} Nd6 {[%emt 0:01:01]} 38. Bd4 {[%emt 0:00:49]} Ne4+ {[%emt 0:01:58]} 39. Kd3 {[%emt 0:00:19]} Rd7 {[%emt 0:00:23]} 40. Rf5 {[%emt 0:01:21]} g6 {[%emt 0:01:03]} 41. Rf8 {[%emt 0:30:31]} Rf7 {[%emt 0:12:58]} 42. Ra8 {[%emt 0:00:00]} Rf3+ {[%emt 0:00:50]} 43. Ke2 {[%emt 0:00:00]} Rh3 {[%emt 0:01:11]} 44. Rxa6+ {[%emt 0:00:00]} Kd7 {[%emt 0:00:45]} 45. Be5 {[%emt 0:00:00]} Rh4 {[%emt 0:01:24]} 46. Kf3 {[%emt 0:00:00]} Rh3+ {[%emt 0:00:51]} 47. Kg2 {[%emt 0:00:00]} Re3 {[%emt 0:00:25]} 48. Ra7+ {[%emt 0:00:00]} Kc6 {[%emt 0:02:08]} 49. Rc7+ {[%emt 0:00:00]} Kb6 {[%emt 0:00:29]} 50. Bd4+ {[%emt 0:00:00]} Kxc7 {[%emt 0:00:06]} 51. Bxe3 {[%emt 0:00:00]} Nc3 {[%emt 0:00:21]} 52. a3 {[%emt 0:00:00]} Kc6 {[%emt 0:00:46]} 53. Kf3 {[%emt 0:00:00]} Nb1 {[%emt 0:00:23]} 54. Bc1 {[%emt 0:00:00]} Nc3 {[%emt 0:01:13]} 55. Bb2 {[%emt 0:00:00]} Ne4 {[%emt 0:01:22]} 56. Bc1 {[%emt 0:00:00]} Kd6 {[%emt 0:01:36]} 57. c4 {[%emt 0:00:00]} Nc5 {[%emt 0:03:33]} 58. Bf4+ {[%emt 0:00:00]} Kc6 {[%emt 0:00:37]} 59. b4 {[%emt 0:00:00]} Ne6 {[%emt 0:01:56]} 60. cxd5+ {[%emt 0:00:00]} Kxd5 {[%emt 0:00:17]} 61. h3 {[%emt 0:00:08]} Nd4+ {[%emt 0:01:18]} 62. Kf2 {[%emt 0:01:38]} Nc2 {[%emt 0:00:34]} 63. Bc1 {[%emt 0:00:26]} Kc4 {[%emt 0:00:10]} 64. Kg3 {[%emt 0:01:08]} Kb3 {[%emt 0:00:08]} 65. Kh4 {[%emt 0:00:45]} Nxa3 {[%emt 0:00:11]} 66. Kg5 {[%emt 0:00:20]} Kxb4 {[%emt 0:01:15]} 67. Kh6 {[%emt 0:00:23]} Nc4 {[%emt 0:01:32]} 68. Kxh7 {[%emt 0:00:11]} Kc3 {[%emt 0:01:01]} 69. Kxg6 {[%emt 0:00:26]} b4 {[%emt 0:00:17]} 70. Bh6 {[%emt 0:01:39]} b3 {[%emt 0:00:29]} 71. Bg7+ {[%emt 0:00:05]} Kd3 {[%emt 0:00:36]} 72. h4 {[%emt 0:00:42]} Ke4 {[%emt 0:00:16]} 73. Ba1 {[%emt 0:00:11]} b2 {[%emt 0:01:16]} 74. Bxb2 {[%emt 0:00:11]} Nxb2 {[%emt 0:00:05]} 75. h5 {[%emt 0:00:11]} Nc4 {[%emt 0:01:12]} 76. h6 {[%emt 0:00:15]} Ne5+ {[%emt 0:00:47]} 77. Kg7 {[%emt 0:00:09]} Nxg4 {[%emt 0:00:34]} 78. h7 {[%emt 0:00:14]} 1-0

[Event "Czech Youth U14 Girls 2024"]
[Site "Kouty nad Desnou"]
[Date "2024.03.10"]
[Round "2.7"]
[White "Bartova, Hana"]
[Black "Archlebova, Iva"]
[Result "1-0"]
[ECO "C52"]
[WhiteElo "1667"]
[BlackElo "1488"]
[Annotator "NA RC"]
[PlyCount "45"]
[EventDate "2024.03.10"]
[EventType "swiss"]
[EventCountry "CZE"]
[SourceTitle "playchess.com"]
[Source "ChessBase"]
[SourceQuality "1"]
[TimeControl "40/5400+30:1800+30"]

1. e4 {[%emt 0:00:02]} e5 {[%emt 0:00:07]} 2. Nf3 {[%emt 0:00:06]} Nc6 {[%emt 0:00:44]} 3. Bc4 {[%emt 0:00:05]} Bc5 {[%emt 0:01:15]} 4. b4 {[%emt 0:00:36]} Bxb4 {[%emt 0:26:04]} 5. c3 {[%emt 0:00:54]} Ba5 {[%emt 0:01:04]} 6. d4 {[%emt 0:00:18]} exd4 {[%emt 0:03:43]} 7. Qb3 {[%emt 0:00:59]} Qe7 {[%emt 0:11:12]} 8. O-O {[%emt 0:02:19]} dxc3 {[%emt 0:04:54]} 9. Nxc3 {[%emt 0:03:41]} Bxc3 {[%emt 0:00:59]} 10. Qxc3 {[%emt 0:00:10]} f6 {[%emt 0:10:56]} 11. Ba3 {[%emt 0:14:49]} d6 {[%emt 0:02:08]} 12. e5 {[%emt 0:03:37]} Nxe5 {[%emt 0:03:04]} 13. Rfe1 {[%emt 0:04:23]} Be6 {[%emt 0:06:17]} 14. Nxe5 {[%emt 0:00:32]} fxe5 {[%emt 0:04:51]} 15. Rxe5 {[%emt 0:00:24]} Kf8 {[%emt 0:15:07]} 16. Rxe6 {[%emt 0:00:40]} Qg5 {[%emt 0:01:43]} 17. Rae1 {[%emt 0:01:22]} Nf6 {[%emt 0:00:48]} 18. Qf3 {[%emt 0:00:33]} a6 {[%emt 0:02:00]} 19. Bc1 {[%emt 0:00:39]} Qh4 {[%emt 0:01:25]} 20. R1e4 {[%emt 0:02:32]} Qh5 {[%emt 0:00:59]} 21. Rxf6+ {[%emt 0:00:18]} gxf6 {[%emt 0:00:26]} 22. Qxf6+ {[%emt 0:00:09]} Qf7 {[%emt 0:00:59]} 23. Qxf7# {[%emt 0:00:09]} 1-0

[Event "Czech Youth U14 Girls 2024"]
[Site "Kouty nad Desnou"]
[Date "2024.03.10"]
[Round "2.8"]
[White "Kammova, Katerina"]
[Black "Kratka, Tereza"]
[Result "1-0"]
[ECO "B23"]
[WhiteElo "1781"]
[BlackElo "1477"]
[Annotator "NA RC"]
[PlyCount "45"]
[EventDate "2024.03.10"]
[EventType "swiss"]
[EventCountry "CZE"]
[SourceTitle "playchess.com"]
[Source "ChessBase"]
[SourceQuality "1"]
[TimeControl "40/5400+30:1800+30"]

1. e4 {[%emt 0:00:02]} c5 {[%emt 0:00:25]} 2. Nc3 {[%emt 0:00:28]} d6 {[%emt 0:00:30]} 3. d4 {[%emt 0:00:52]} cxd4 {[%emt 0:00:20]} 4. Qxd4 {[%emt 0:00:11]} Nc6 {[%emt 0:00:55]} 5. Qd2 {[%emt 0:01:50]} g6 {[%emt 0:02:09]} 6. b3 {[%emt 0:02:16]} Bg7 {[%emt 0:00:24]} 7. Bb2 {[%emt 0:00:33]} Nf6 {[%emt 0:01:24]} 8. O-O-O {[%emt 0:02:20]} O-O {[%emt 0:01:58]} 9. h3 {[%emt 0:05:19]} a6 {[%emt 0:05:18]} 10. g4 {[%emt 0:03:23]} b5 {[%emt 0:01:37]} 11. Bg2 {[%emt 0:00:40]} Bb7 {[%emt 0:04:00]} 12. f4 {[%emt 0:10:30]} Rb8 {[%emt 0:08:50]} 13. Nge2 {[%emt 0:06:38]} Qc7 {[%emt 0:16:05]} 14. g5 {[%emt 0:06:58]} Ne8 {[%emt 0:05:44]} 15. Nd5 {[%emt 0:01:59]} Bxb2+ {[%emt 0:01:15]} 16. Kxb2 {[%emt 0:00:08]} Qd8 {[%emt 0:00:33]} 17. h4 {[%emt 0:01:52]} Ng7 {[%emt 0:01:03]} 18. Ng3 {[%emt 0:01:37]} a5 {[%emt 0:02:27]} 19. h5 {[%emt 0:01:53]} a4 {[%emt 0:01:40]} 20. hxg6 {[%emt 0:01:09]} fxg6 {[%emt 0:02:25]} 21. Bh3 {[%emt 0:02:53]} axb3 {[%emt 0:06:47]} 22. cxb3 {[%emt 0:01:17]} Ra8 {[%emt 0:03:00]} 23. Qh2 {[%emt 0:00:51]} 1-0

[Event "Czech Youth U14 Girls 2024"]
[Site "Kouty nad Desnou"]
[Date "2024.03.10"]
[Round "2.9"]
[White "Nguyen Nhat, Minh Thu"]
[Black "Martinkovicova, Nela"]
[Result "1-0"]
[ECO "C50"]
[WhiteElo "1563"]
[BlackElo "1476"]
[Annotator "NA RC"]
[PlyCount "109"]
[EventDate "2024.03.10"]
[EventType "swiss"]
[EventCountry "CZE"]
[SourceTitle "playchess.com"]
[Source "ChessBase"]
[SourceQuality "1"]
[TimeControl "40/5400+30:1800+30"]

1. e4 {[%emt 0:00:03]} e5 {[%emt 0:00:25]} 2. Bc4 {[%emt 0:01:25]} Nf6 {[%emt 0:03:38]} 3. d3 {[%emt 0:00:39]} Bc5 {[%emt 0:00:35]} 4. Nf3 {[%emt 0:00:41]} Nc6 {[%emt 0:00:41]} 5. c3 {[%emt 0:03:38]} d6 {[%emt 0:03:27]} 6. h3 {[%emt 0:07:09]} Be6 {[%emt 0:02:17]} 7. Bxe6 {[%emt 0:09:12]} fxe6 {[%emt 0:00:40]} 8. Qb3 {[%emt 0:03:54]} Qc8 {[%emt 0:07:41]} 9. Be3 {[%emt 0:08:56]} Bxe3 {[%emt 0:05:39]} 10. fxe3 {[%emt 0:00:15]} d5 {[%emt 0:01:55]} 11. exd5 {[%emt 0:03:22]} exd5 {[%emt 0:02:04]} 12. Nbd2 {[%emt 0:01:27]} Rb8 {[%emt 0:02:28]} 13. O-O {[%emt 0:07:40]} h6 {[%emt 0:04:27]} 14. e4 {[%emt 0:07:37]} Qd7 {[%emt 0:02:15]} 15. exd5 {[%emt 0:02:14]} Qxd5 {[%emt 0:00:51]} 16. Qxd5 {[%emt 0:00:35]} Nxd5 {[%emt 0:00:15]} 17. Rfe1 {[%emt 0:00:08]} O-O {[%emt 0:01:17]} 18. Nxe5 {[%emt 0:01:35]} Nxe5 {[%emt 0:01:59]} 19. Rxe5 {[%emt 0:00:06]} Nf4 {[%emt 0:01:09]} 20. Re3 {[%emt 0:01:48]} Rbd8 {[%emt 0:01:02]} 21. d4 {[%emt 0:00:24]} c5 {[%emt 0:00:43]} 22. Nb3 {[%emt 0:02:45]} cxd4 {[%emt 0:01:31]} 23. Nxd4 {[%emt 0:01:17]} Nd5 {[%emt 0:01:16]} 24. Re5 {[%emt 0:02:55]} Nc7 {[%emt 0:01:50]} 25. Re7 {[%emt 0:03:16]} Rf7 {[%emt 0:01:44]} 26. Rae1 {[%emt 0:02:25]} Rdf8 {[%emt 0:02:13]} 27. Rxf7 {[%emt 0:01:58]} Rxf7 {[%emt 0:00:54]} 28. Re2 {[%emt 0:02:39]} Nd5 {[%emt 0:01:23]} 29. Re8+ {[%emt 0:01:41]} Kh7 {[%emt 0:00:55]} 30. Ra8 {[%emt 0:00:56]} a6 {[%emt 0:01:30]} 31. Re8 {[%emt 0:01:02]} Nc7 {[%emt 0:01:41]} 32. Rb8 {[%emt 0:01:56]} Nd5 {[%emt 0:00:57]} 33. Ne6 {[%emt 0:02:19]} Nc7 {[%emt 0:05:23]} 34. Rxb7 {[%emt 0:00:56]} Re7 {[%emt 0:04:08]} 35. Nxc7 {[%emt 0:00:30]} Kg6 {[%emt 0:00:43]} 36. Rb6+ {[%emt 0:00:13]} Kf7 {[%emt 0:00:35]} 37. Nxa6 {[%emt 0:00:20]} Re1+ {[%emt 0:01:26]} 38. Kf2 {[%emt 0:00:18]} Re5 {[%emt 0:00:57]} 39. Nb4 {[%emt 0:01:31]} Rf5+ {[%emt 0:01:29]} 40. Kg1 {[%emt 0:00:11]} Re5 {[%emt 0:00:21]} 41. a4 {[%emt 0:30:20]} Ra5 {[%emt 0:30:16]} 42. Ra6 {[%emt 0:00:09]} Rxa6 {[%emt 0:00:42]} 43. Nxa6 {[%emt 0:00:04]} Ke7 {[%emt 0:00:05]} 44. b4 {[%emt 0:00:13]} Kd7 {[%emt 0:00:10]} 45. Kf2 {[%emt 0:00:07]} Kc6 {[%emt 0:00:10]} 46. b5+ {[%emt 0:00:21]} Kb6 {[%emt 0:00:20]} 47. c4 {[%emt 0:00:17]} Kb7 {[%emt 0:00:19]} 48. c5 {[%emt 0:00:09]} g5 {[%emt 0:00:18]} 49. c6+ {[%emt 0:00:16]} Kc8 {[%emt 0:00:53]} 50. b6 {[%emt 0:00:12]} h5 {[%emt 0:00:23]} 51. b7+ {[%emt 0:00:09]} Kd8 {[%emt 0:00:24]} 52. b8=Q+ {[%emt 0:00:10]} Ke7 {[%emt 0:00:14]} 53. c7 {[%emt 0:00:18]} Kf7 {[%emt 0:00:13]} 54. c8=Q {[%emt 0:00:12]} Ke7 {[%emt 0:00:07]} 55. Qb6 1-0

[Event "Czech Youth U14 Girls 2024"]
[Site "Kouty nad Desnou"]
[Date "2024.03.10"]
[Round "2.10"]
[White "Myronova, Sofia"]
[Black "Krisicova, Neli"]
[Result "1-0"]
[ECO "C49"]
[WhiteElo "1456"]
[BlackElo "1556"]
[Annotator "NA RC"]
[PlyCount "57"]
[EventDate "2024.03.10"]
[EventType "swiss"]
[EventCountry "CZE"]
[SourceTitle "playchess.com"]
[Source "ChessBase"]
[SourceQuality "1"]
[TimeControl "40/5400+30:1800+30"]

1. e4 {[%emt 0:00:06]} e5 {[%emt 0:00:20]} 2. Nf3 {[%emt 0:00:14]} Nc6 {[%emt 0:00:29]} 3. Nc3 {[%emt 0:00:23]} Nf6 {[%emt 0:01:34]} 4. Bb5 {[%emt 0:00:31]} Bb4 {[%emt 0:01:47]} 5. O-O {[%emt 0:01:27]} O-O {[%emt 0:02:45]} 6. d3 {[%emt 0:01:54]} d6 {[%emt 0:02:27]} 7. Bg5 {[%emt 0:01:18]} h6 {[%emt 0:02:16]} 8. Bh4 {[%emt 0:02:30]} Bxc3 {[%emt 0:04:09]} 9. bxc3 {[%emt 0:00:54]} Bg4 {[%emt 0:03:53]} 10. h3 {[%emt 0:04:15]} Bh5 {[%emt 0:03:16]} 11. Qe2 {[%emt 0:03:56]} Qe7 {[%emt 0:02:27]} 12. Qe3 {[%emt 0:01:37]} Nd8 {[%emt 0:04:32]} 13. Bc4 {[%emt 0:02:15]} Ne6 {[%emt 0:02:17]} 14. Bxe6 {[%emt 0:07:13]} fxe6 {[%emt 0:00:45]} 15. Rab1 {[%emt 0:01:41]} Qe8 {[%emt 0:10:47]} 16. Nd2 {[%emt 0:05:27]} Nh7 {[%emt 0:08:13]} 17. Rxb7 {[%emt 0:02:58]} g5 {[%emt 0:10:00]} 18. Bg3 {[%emt 0:01:24]} c5 {[%emt 0:09:26]} 19. Rfb1 {[%emt 0:06:39]} Qa4 {[%emt 0:06:34]} 20. R1b2 {[%emt 0:02:34]} Nf6 {[%emt 0:04:15]} 21. Nc4 {[%emt 0:07:56]} Qc6 {[%emt 0:03:21]} 22. h4 {[%emt 0:07:21]} Ng4 {[%emt 0:03:13]} 23. Qd2 {[%emt 0:00:52]} gxh4 {[%emt 0:04:41]} 24. Bxh4 {[%emt 0:01:28]} Rf7 {[%emt 0:04:06]} 25. Rxf7 {[%emt 0:05:04]} Bxf7 {[%emt 0:02:14]} 26. f3 {[%emt 0:00:14]} d5 {[%emt 0:00:07]} 27. fxg4 {[%emt 0:00:43]} dxc4 {[%emt 0:00:18]} 28. Qxh6 {[%emt 0:00:17]} cxd3 {[%emt 0:00:26]} 29. Bf6 {[%emt 0:00:19]} 1-0

[Event "Czech Youth U14 Girls 2024"]
[Site "Kouty nad Desnou"]
[Date "2024.03.10"]
[Round "2.11"]
[White "Kavanova, Valentyna"]
[Black "Pruskova, Justyna"]
[Result "1-0"]
[ECO "C50"]
[WhiteElo "1539"]
[BlackElo "1471"]
[Annotator "NA RC"]
[PlyCount "117"]
[EventDate "2024.03.10"]
[EventType "swiss"]
[EventCountry "CZE"]
[SourceTitle "playchess.com"]
[Source "ChessBase"]
[SourceQuality "1"]
[TimeControl "40/5400+30:1800+30"]

1. e4 {[%emt 0:00:03]} e5 {[%emt 0:00:11]} 2. Nf3 {[%emt 0:00:08]} Nc6 {[%emt 0:00:14]} 3. Bc4 {[%emt 0:00:19]} Bc5 {[%emt 0:00:18]} 4. d3 {[%emt 0:00:11]} Nf6 {[%emt 0:00:19]} 5. Nc3 {[%emt 0:00:17]} d6 {[%emt 0:00:42]} 6. O-O {[%emt 0:00:27]} Be6 {[%emt 0:00:16]} 7. Nd5 {[%emt 0:01:26]} Bxd5 {[%emt 0:02:12]} 8. exd5 {[%emt 0:00:34]} Nd4 {[%emt 0:01:25]} 9. Nxd4 {[%emt 0:00:52]} Bxd4 {[%emt 0:00:15]} 10. c3 {[%emt 0:00:27]} Bb6 {[%emt 0:00:39]} 11. d4 {[%emt 0:01:39]} exd4 {[%emt 0:00:44]} 12. Re1+ {[%emt 0:00:29]} Kf8 {[%emt 0:01:13]} 13. cxd4 {[%emt 0:01:38]} h6 {[%emt 0:01:28]} 14. b4 {[%emt 0:01:02]} a6 {[%emt 0:00:43]} 15. a4 {[%emt 0:00:45]} g6 {[%emt 0:01:52]} 16. a5 {[%emt 0:00:27]} Ba7 {[%emt 0:00:28]} 17. Bb2 {[%emt 0:00:24]} Kg7 {[%emt 0:01:10]} 18. Ra3 {[%emt 0:01:01]} Re8 {[%emt 0:02:16]} 19. Rh3 {[%emt 0:01:46]} Rxe1+ {[%emt 0:01:28]} 20. Qxe1 {[%emt 0:00:14]} Qe8 {[%emt 0:03:39]} 21. Qd2 {[%emt 0:01:12]} h5 {[%emt 0:04:07]} 22. Kf1 {[%emt 0:06:10]} Qe4 {[%emt 0:10:24]} 23. Re3 {[%emt 0:02:32]} Qb1+ {[%emt 0:03:32]} 24. Re1 {[%emt 0:01:28]} Qf5 {[%emt 0:01:08]} 25. Re7 {[%emt 0:01:40]} Ne4 {[%emt 0:04:01]} 26. Qe3 {[%emt 0:02:45]} Nf6 {[%emt 0:05:20]} 27. Rxc7 {[%emt 0:01:38]} Nxd5 {[%emt 0:01:20]} 28. Bxd5 {[%emt 0:00:13]} Qxd5 {[%emt 0:00:44]} 29. h3 {[%emt 0:02:23]} Qb5+ {[%emt 0:01:53]} 30. Qe2 {[%emt 0:01:35]} Qxe2+ {[%emt 0:01:41]} 31. Kxe2 {[%emt 0:00:13]} Rb8 {[%emt 0:03:47]} 32. Kd3 {[%emt 0:01:01]} Kf8 {[%emt 0:02:20]} 33. Bc1 {[%emt 0:00:28]} Ke8 {[%emt 0:00:53]} 34. Bg5 {[%emt 0:00:31]} Kf8 {[%emt 0:01:59]} 35. Be7+ {[%emt 0:01:21]} Kg7 {[%emt 0:04:10]} 36. Bxd6 {[%emt 0:00:24]} Rd8 {[%emt 0:02:45]} 37. Be5+ {[%emt 0:00:31]} Kf8 {[%emt 0:02:53]} 38. Rxb7 {[%emt 0:00:36]} Ra8 {[%emt 0:00:49]} 39. f3 {[%emt 0:02:52]} f5 {[%emt 0:00:48]} 40. g3 {[%emt 0:00:54]} Ke8 {[%emt 0:00:37]} 41. Bc7 {[%emt 0:31:17]} Kd7 {[%emt 0:32:33]} 42. Bb6+ {[%emt 0:00:10]} Kc6 {[%emt 0:01:41]} 43. Rxa7 {[%emt 0:00:07]} Rxa7 {[%emt 0:01:10]} 44. Bxa7 {[%emt 0:00:09]} Kd5 {[%emt 0:01:05]} 45. Bc5 {[%emt 0:01:10]} Kc6 {[%emt 0:01:23]} 46. Kc4 {[%emt 0:00:18]} Kd7 {[%emt 0:01:34]} 47. b5 {[%emt 0:00:37]} axb5+ {[%emt 0:00:41]} 48. Kxb5 {[%emt 0:00:05]} Kc7 {[%emt 0:00:56]} 49. d5 {[%emt 0:00:44]} g5 {[%emt 0:00:56]} 50. d6+ {[%emt 0:00:14]} Kd7 {[%emt 0:01:59]} 51. a6 {[%emt 0:00:08]} Kc8 {[%emt 0:00:40]} 52. a7 {[%emt 0:00:15]} Kb7 {[%emt 0:00:12]} 53. d7 {[%emt 0:00:09]} Kc7 {[%emt 0:01:32]} 54. a8=Q {[%emt 0:00:28]} Kxd7 {[%emt 0:00:20]} 55. Qc6+ {[%emt 0:00:09]} Kd8 {[%emt 0:00:35]} 56. Qb7 {[%emt 0:00:42]} f4 {[%emt 0:00:12]} 57. g4 {[%emt 0:01:11]} h4 {[%emt 0:00:14]} 58. Bd6 {[%emt 0:00:28]} Ke8 {[%emt 0:00:22]} 59. Qe7# {[%emt 0:00:17]} 1-0

[Event "Czech Youth U14 Girls 2024"]
[Site "Kouty nad Desnou"]
[Date "2024.03.10"]
[Round "2.12"]
[White "Vaclavkova, Klara"]
[Black "Archlebova, Eva"]
[Result "0-1"]
[ECO "D37"]
[WhiteElo "1486"]
[BlackElo "1438"]
[Annotator "NA RC"]
[PlyCount "80"]
[EventDate "2024.03.10"]
[EventType "swiss"]
[EventCountry "CZE"]
[SourceTitle "playchess.com"]
[Source "ChessBase"]
[SourceQuality "1"]
[TimeControl "40/5400+30:1800+30"]

1. d4 {[%emt 0:00:03]} d5 {[%emt 0:00:11]} 2. c4 {[%emt 0:00:01]} e6 {[%emt 0:00:48]} 3. Nc3 {[%emt 0:00:06]} Nf6 {[%emt 0:00:40]} 4. Nf3 {[%emt 0:00:34]} Nc6 {[%emt 0:00:42]} 5. Bg5 {[%emt 0:00:17]} Be7 {[%emt 0:00:32]} 6. e3 {[%emt 0:00:20]} h6 {[%emt 0:00:12]} 7. Bh4 {[%emt 0:00:33]} Ne4 {[%emt 0:01:38]} 8. Bxe7 {[%emt 0:00:56]} Qxe7 {[%emt 0:00:13]} 9. cxd5 {[%emt 0:00:36]} Nxc3 {[%emt 0:01:54]} 10. bxc3 {[%emt 0:00:12]} exd5 {[%emt 0:01:46]} 11. Bd3 {[%emt 0:00:49]} O-O {[%emt 0:03:20]} 12. Rb1 {[%emt 0:01:37]} a6 {[%emt 0:03:32]} 13. Bc2 {[%emt 0:01:28]} g6 {[%emt 0:00:53]} 14. O-O {[%emt 0:01:39]} b5 {[%emt 0:00:17]} 15. Re1 {[%emt 0:00:27]} Qd6 {[%emt 0:16:58]} 16. e4 {[%emt 0:00:46]} Be6 {[%emt 0:02:54]} 17. Bb3 {[%emt 0:02:48]} Rfe8 {[%emt 0:02:28]} 18. Ne5 {[%emt 0:02:45]} dxe4 {[%emt 0:10:27]} 19. Nxc6 {[%emt 0:01:47]} Bxb3 {[%emt 0:02:29]} 20. Rxb3 {[%emt 0:02:28]} Qxc6 {[%emt 0:00:13]} 21. Qd2 {[%emt 0:02:46]} Kh7 {[%emt 0:00:49]} 22. Re3 {[%emt 0:01:43]} Qd5 {[%emt 0:01:38]} 23. Rh3 {[%emt 0:01:01]} g5 {[%emt 0:01:17]} 24. Qc2 {[%emt 0:06:52]} Kg7 {[%emt 0:01:18]} 25. Rg3 {[%emt 0:00:30]} c5 {[%emt 0:01:06]} 26. dxc5 {[%emt 0:03:29]} Rad8 {[%emt 0:00:40]} 27. h4 {[%emt 0:03:00]} Qxc5 {[%emt 0:00:33]} 28. hxg5 {[%emt 0:02:52]} hxg5 {[%emt 0:00:14]} 29. Qc1 {[%emt 0:00:39]} f6 {[%emt 0:00:21]} 30. Rb2 {[%emt 0:11:58]} Rd3 {[%emt 0:04:26]} 31. Rxd3 {[%emt 0:01:35]} exd3 {[%emt 0:00:05]} 32. Kf1 {[%emt 0:00:51]} Qc4 {[%emt 0:01:47]} 33. Rd2 {[%emt 0:01:02]} b4 {[%emt 0:03:15]} 34. Qb1 {[%emt 0:02:21]} bxc3 {[%emt 0:00:51]} 35. Qb7+ {[%emt 0:00:40]} Kg6 {[%emt 0:00:22]} 36. Qd7 {[%emt 0:00:37]} Re2 {[%emt 0:01:27]} 37. Qxd3+ {[%emt 0:00:21]} Qxd3 {[%emt 0:00:32]} 38. Rxd3 {[%emt 0:00:12]} c2 {[%emt 0:04:33]} 39. Rc3 {[%emt 0:00:30]} Rd2 {[%emt 0:00:12]} 40. Ke1 {[%emt 0:00:56]} Rd1+ {[%emt 0:00:11]} 0-1